bitfinex-derivatives/quotes_ETHF0:USTF0_20250115
["timestamp","ask_amount","ask_price","bid_price","bid_amount"]
[1736970322464,13.77250121,3413.1,3412.5,0.58598]
[1736970322465,0.58597,3412.6,3412.5,0.58598]
[1736970322669,13.77247121,3413.1,3412.5,0.9835]
[1736970322868,0.58597,3412.6,3412.5,41.7835]
[1736970323065,12.30775121,3413.1,3412.5,41.7835]
[1736970323274,0.58594,3412.8,3412.7,0.58595]
[1736970323569,12.30775121,3413.1,3412.7,2.3399987]
[1736970323774,12.30775121,3413.1,3413.0,2.9258987]
[1736970323967,12.30775121,3413.1,3413.0,4.1608987]
[1736970324361,12.29678121,3413.1,3413.0,4.1608987]
[1736970324564,12.29678121,3413.1,3413.0,9.1608987]
[1736970324973,0.4901,3414.3,3413.0,8.5749987]
[1736970325176,0.58575,3413.9,3413.6,3.2078]
[1736970325376,0.4901,3414.3,3413.7,0.4926]
[1736970325576,0.58576,3413.8,3413.7,0.4926]
[1736970326269,0.58576,3413.9,3413.7,0.4926]
[1736970326466,0.4901,3414.3,3413.9,0.58575]
[1736970326467,0.58569,3414.3,3413.9,0.58575]
[1736970326766,3.2078,3414.6,3413.9,0.58575]
[1736970326971,0.58567,3414.4,3413.9,0.58575]
[1736970327273,3.2078,3414.6,3413.9,41.38575]
[1736970327680,0.58568,3414.4,3413.9,41.38575]
[1736970327867,3.2078,3414.6,3413.9,41.38575]
[1736970328372,0.58565,3414.5,3413.9,41.38575]
[1736970328568,1.46401,3414.8,3413.9,41.38575]
[1736970328764,14.24147719,3414.0,3413.9,40.8]
[1736970328977,14.24147719,3414.0,3413.9,42.035]
[1736970329277,3.2078,3414.6,3413.9,42.035]
[1736970329476,3.2078,3414.6,3414.1,0.58571]
[1736970329873,0.58569,3414.3,3414.0,2.3399987]
[1736970330072,0.58569,3414.3,3414.1,0.5857]
[1736970330275,3.2078,3414.6,3414.0,2.3399987]
[1736970330578,3.79344,3414.6,3414.4,0.58565]
[1736970330778,3.2078,3414.6,3414.3,2.3399987]
[1736970330981,3.2078,3414.6,3414.5,0.58564]
[1736970332381,3.2078,3414.6,3414.5,1.81964]
[1736970333180,0.58543,3415.8,3415.6,0.58545]
[1736970333381,3.2078,3415.9,3415.4,3.5739987]
[1736970333586,0.58547,3415.6,3415.5,1.234]
[1736970333880,0.5067,3415.8,3415.3,42.034]
[1736970334080,1.09212,3415.8,3415.4,2.3399987]
[1736970334274,0.5067,3415.8,3415.4,2.8522987]
[1736970334482,1.09214,3415.8,3415.5,0.58547]
[1736970334672,0.58544,3415.7,3415.6,0.58545]
[1736970334996,0.5067,3415.8,3415.7,0.58544]
[1736970335176,3.2078,3416.3,3415.7,2.3399987]
[1736970335383,3.79314,3416.3,3415.7,2.3399987]
[1736970335684,3.2078,3416.7,3416.1,0.58536]
[1736970335882,0.58532,3416.4,3416.1,0.58536]
[1736970336183,0.58535,3416.2,3415.7,2.8152987]
[1736970336381,0.58533,3416.4,3415.8,1.234]
[1736970336580,0.58533,3416.4,3416.1,0.58536]
[1736970336776,3.2078,3416.7,3415.8,1.234]
[1736970337084,0.58534,3416.3,3416.0,0.58537]
[1736970337273,0.58534,3416.3,3415.9,0.5854]
[1736970337479,0.58534,3416.3,3416.1,0.58536]
[1736970337678,0.58532,3416.4,3416.1,0.58537]
[1736970337885,0.58532,3416.4,3416.2,0.58534]
[1736970338090,0.58535,3416.3,3416.1,0.58536]
[1736970338383,3.2078,3416.7,3415.9,1.234]
[1736970338682,0.58538,3416.1,3415.9,0.5854]
[1736970339081,5.5477987,3416.3,3415.6,3.2078]
[1736970339381,0.58544,3415.7,3415.6,3.2078]
[1736970340482,0.58544,3415.7,3415.4,4.0862987]
[1736970340483,0.5038,3416.0,3415.4,4.0862987]
[1736970340680,0.58547,3415.5,3415.4,4.0862987]
[1736970343278,0.58547,3415.5,3415.4,1.7463]
[1736970344581,0.58932216,3415.5,3415.4,1.7463]
[1736970344789,0.58932216,3415.5,3415.4,2.8522987]
[1736970345687,0.00385216,3415.5,3415.4,2.8522987]
[1736970345887,0.00385216,3415.5,3415.4,3.4377887]
[1736970346989,0.00385216,3415.5,3415.4,44.2377887]
[1736970348993,0.58546,3415.6,3415.5,0.58547]
[1736970349386,0.58546,3415.6,3415.4,44.2377787]
[1736970349586,0.5038,3416.0,3415.4,44.2377787]
[1736970349787,0.5038,3416.0,3415.4,43.6522987]
[1736970350094,0.5038,3416.0,3415.4,44.2377787]
[1736970350288,0.58547,3415.6,3415.4,44.1562987]
[1736970350490,0.5038,3416.0,3415.4,44.1562987]
[1736970350986,0.58547,3415.5,3415.4,44.7417787]
[1736970351184,0.58544,3415.7,3415.6,0.58545]
[1736970351398,1.46311,3416.9,3415.7,1.4636]
[1736970351590,0.5853,3416.5,3416.4,5.5477987]
[1736970351793,0.5853,3416.5,3416.4,6.7807987]
[1736970352094,0.5853,3416.5,3416.4,47.5807987]
[1736970352484,0.5853,3416.5,3416.4,48.0844987]
[1736970352687,0.5853,3416.5,3416.4,48.6698187]
[1736970352890,2.46711,3417.1,3416.4,48.0844987]
[1736970353092,0.58523,3416.9,3416.8,3.2078]
[1736970356192,0.58523,3417.0,3416.9,0.58523]
[1736970356389,1.07411,3417.1,3417.0,0.58522]
[1736970356588,1.07411,3417.1,3416.8,3.2078]
[1736970356589,0.4889,3417.1,3416.8,3.2078]
[1736970356992,0.58522,3417.0,3416.9,0.58522]
[1736970357996,1.07411,3417.1,3417.0,0.58522]
[1736970358292,1.07411,3417.1,3417.0,2.3399987]
[1736970358496,1.07411,3417.1,3417.0,2.9252187]
[1736970358791,0.58523,3416.9,3416.8,3.79304]
[1736970358997,0.5086,3417.7,3416.8,3.3006803]
[1736970359294,0.58513,3417.5,3417.4,3.2078]
[1736970359699,0.58513,3417.5,3417.4,3.79295]
[1736970359995,1.46247,3418.4,3417.4,3.2078]
[1736970360292,5.2644987,3418.9,3417.9,0.58505]
[1736970360293,0.58504,3418.1,3417.9,0.58505]
[1736970360491,0.58503,3418.1,3418.0,40.8]
[1736970360899,0.58501,3418.3,3418.1,0.58502]
[1736970361102,0.58502,3418.2,3418.1,2.3399987]
[1736970361396,0.58503,3418.1,3418.0,41.3011]
[1736970361594,1.09643,3418.1,3418.0,42.033]
[1736970362097,1.09643,3418.1,3418.0,1.233]
[1736970362492,2.3399987,3418.9,3418.0,1.233]
[1736970362493,3.2078,3421.6,3418.9,0.499]
[1736970362692,3.2078,3421.4,3420.5,2.3399987]
[1736970362996,3.2078,3421.4,3420.8,3.2078]
[1736970363694,3.2078,3421.4,3420.8,3.79235]
[1736970363889,3.2078,3421.4,3420.8,4.4398]
[1736970364499,3.2078,3421.4,3420.8,7.3643587]
[1736970364699,3.2078,3421.4,3420.8,6.7797987]
[1736970365100,0.9721,3422.0,3421.4,0.58445]
[1736970365302,0.9721,3422.0,3421.3,3.2078]
[1736970365502,0.9721,3422.0,3421.3,3.79227]
[1736970365700,1.55647,3422.0,3421.4,0.58446]
[1736970366001,1.55647,3422.0,3420.6,1.46148]
[1736970366002,3.2078,3422.6,3422.0,0.58435]
[1736970366204,3.2078,3422.7,3422.0,0.58435]
[1736970366393,3.2078,3422.7,3422.3,0.5843]
[1736970366595,0.58419,3423.0,3421.9,3.5719987]
[1736970366596,2.3399987,3423.0,3422.5,0.58426]
[1736970366797,3.2078,3422.8,3422.0,1.232]
[1736970367107,3.2078,3422.8,3422.5,0.58427]
[1736970367398,3.2078,3422.8,3422.0,1.232]
[1736970367603,3.2078,3422.8,3422.5,0.58426]
[1736970367796,0.58418,3423.1,3422.2,0.58431]
[1736970367997,0.58418,3423.1,3422.3,0.5843]
[1736970368198,3.2078,3423.2,3422.1,3.2078]
[1736970368396,3.2078,3423.2,3421.1,1.46127]
[1736970368397,0.58426,3422.6,3421.8,1.81638]
[1736970368592,0.515,3422.5,3421.8,1.232]
[1736970368796,0.515,3422.5,3421.7,4.4398]
[1736970368997,0.515,3422.5,3422.1,3.2078]
[1736970369205,0.515,3422.5,3422.1,3.79214]
[1736970369397,0.515,3422.5,3422.1,3.2078]
[1736970369597,0.515,3422.5,3422.1,3.79213]
[1736970369805,0.515,3422.5,3422.1,3.79214]
[1736970370015,1.09928,3422.5,3422.1,3.2078]
[1736970370209,0.515,3422.5,3422.1,3.2078]
[1736970370598,0.58432,3422.3,3421.7,3.79221]
[1736970371098,0.5843,3422.4,3421.8,3.37216232]
[1736970371299,0.515,3422.5,3421.8,3.37216232]
[1736970371300,1.09928,3422.5,3422.0,0.58436]
[1736970371501,0.515,3422.5,3422.0,0.58436]
[1736970371802,0.58429,3422.4,3421.9,0.58437]
[1736970372207,1.09928,3422.5,3422.0,0.58435]
[1736970372704,0.515,3422.5,3422.2,2.78777232]
[1736970374501,1.09928,3422.5,3422.2,2.78777232]
[1736970374700,0.515,3422.5,3422.2,2.78777232]
[1736970375396,0.515,3422.5,3422.2,3.37209232]
[1736970375704,11.51057232,3422.5,3420.7,3.2078]
[1736970375904,0.58438,3421.9,3421.1,3.2078]
[1736970376108,3.2078,3422.0,3421.4,2.78777232]
[1736970376403,3.2078,3422.0,3420.7,3.2078]
[1736970376404,3.2078,3421.5,3420.7,3.2078]
[1736970376704,0.58459,3420.7,3420.3,3.2078]
[1736970376904,0.58462,3420.5,3420.3,3.2078]
[1736970377102,2.78777232,3421.6,3420.3,3.2078]
[1736970377103,3.2078,3422.4,3420.4,2.78777232]
[1736970377403,0.4879,3422.3,3421.8,3.2078]
[1736970377798,0.58438,3421.9,3421.8,3.2078]
[1736970378004,0.4879,3422.3,3421.8,3.2078]
[1736970378202,0.58439,3421.9,3421.8,3.2078]
[1736970378403,3.2078,3422.9,3422.8,0.58422]
[1736970378610,0.58404,3423.9,3423.3,0.58413]
[1736970378797,15.0,3424.0,3423.8,3.2078]
[1736970379004,15.0,3424.0,3423.9,0.58404]
[1736970379212,15.0,3424.0,3423.9,6.88304]
[1736970379514,14.59918361,3424.0,3423.9,6.88304]
[1736970379703,13.92077361,3424.0,3423.9,47.68304]
[1736970380205,12.40257361,3424.0,3423.9,46.38404]
[1736970380404,3.2078,3425.9,3425.1,0.58383]
[1736970380603,3.2078,3426.0,3425.5,3.2078]
[1736970380808,0.58377,3425.5,3425.1,3.2078]
[1736970381208,0.58381,3425.3,3425.1,3.2078]
[1736970381405,0.58381,3425.3,3423.4,0.497]
[1736970381406,3.2078,3425.6,3424.7,3.2078]
[1736970381601,3.2078,3426.0,3425.1,3.2078]
[1736970381810,0.58379,3425.4,3425.1,3.2078]
[1736970382306,3.2078,3426.0,3425.1,3.2078]
[1736970382511,0.58372,3425.8,3425.5,3.2078]
[1736970382713,0.58368,3426.0,3425.5,3.2078]
[1736970382913,3.2078,3426.4,3425.5,3.2078]
[1736970383211,1.3406,3425.8,3425.6,2.78777232]
[1736970383405,1.3406,3425.8,3425.7,3.2078]
[1736970384008,1.5741,3425.8,3425.7,3.2078]
[1736970384310,1.5741,3425.8,3425.7,3.79153]
[1736970384501,2.7417,3425.8,3425.7,3.79153]
[1736970385015,3.4714,3425.8,3425.7,3.79153]
[1736970385205,3.2078,3427.2,3425.7,8.2078]
[1736970385406,0.58352,3426.9,3426.8,3.2078]
[1736970385816,0.1414,3427.1,3426.9,0.58352]
[1736970386108,0.1414,3427.1,3427.0,2.78777232]
[1736970386420,1.3085,3427.1,3427.0,2.78777232]
[1736970386607,0.58352,3426.9,3426.8,3.2078]
[1736970386802,3.27092,3426.9,3426.8,3.2078]
[1736970387411,2.9208,3426.9,3426.4,3.2078]
[1736970387610,0.58359,3426.5,3426.4,3.2078]
[1736970387807,3.27099,3426.5,3426.4,3.2078]
[1736970388005,3.27099,3426.5,3426.0,3.2078]
[1736970388006,0.58368,3426.1,3426.0,3.2078]
[1736970388211,3.27108,3426.1,3426.0,3.2078]
[1736970388914,2.6874,3426.1,3425.4,0.5023]
[1736970389105,3.27116,3425.5,3425.4,0.5023]
[1736970389912,2.6874,3425.5,3425.2,3.2078]
[1736970390117,3.2712,3425.3,3425.2,3.2078]
[1736970392110,2.6874,3425.3,3425.2,3.2078]
[1736970392305,3.2712,3425.3,3425.2,3.2078]
[1736970392911,3.2078,3426.0,3425.2,11.36423063]
[1736970393120,3.2711,3425.9,3425.5,0.58375]
[1736970393320,0.5837,3425.9,3425.8,3.2078]
[1736970393711,3.2711,3425.9,3425.8,3.2078]
[1736970394214,2.6874,3425.9,3425.8,3.2078]
[1736970394419,2.6874,3425.9,3425.8,3.79151]
[1736970394620,2.6874,3425.9,3425.8,3.2078]
[1736970395119,0.58366,3426.2,3425.8,3.7915]
[1736970395313,2.6874,3425.9,3425.8,3.2078]
[1736970395517,3.2711,3425.9,3425.8,3.2078]
[1736970395915,0.58376,3425.5,3425.4,3.2078]
[1736970396215,2.6874,3425.5,3425.4,3.79158]
[1736970396517,3.27116,3425.5,3425.4,3.2078]
[1736970396718,2.6874,3425.5,3425.4,3.2078]
[1736970397111,3.27116,3425.5,3425.4,3.2078]
[1736970398319,3.27116,3425.5,3424.7,0.5023]
[1736970398320,0.58383,3425.1,3425.0,3.2078]
[1736970398729,3.27123,3425.1,3425.0,3.2078]
[1736970398910,3.27553,3425.1,3425.0,3.2078]
[1736970399513,0.58385,3425.0,3424.9,3.2078]
[1736970400025,3.27125,3425.0,3424.9,3.2078]
[1736970401427,2.6874,3425.0,3424.2,4.5048]
[1736970401728,2.6874,3425.0,3424.2,3.2078]
[1736970401729,3.27138,3424.3,3424.2,3.2078]
[1736970402726,3.54848,3424.3,3424.2,3.2078]
[1736970405826,3.78208,3424.3,3424.2,3.2078]
[1736970406935,3.78208,3424.3,3423.8,0.58405]
[1736970406936,0.58404,3423.9,3423.7,41.87296]
[1736970407131,3.1981,3424.3,3423.8,3.64396133]
[1736970407331,3.1981,3424.3,3424.2,3.79179]
[1736970407633,3.1981,3424.3,3424.2,45.02780688]
[1736970407837,0.5107,3424.3,3424.2,45.02780688]
[1736970409036,3.1981,3424.3,3424.2,45.02780688]
[1736970409238,0.5107,3424.3,3424.2,45.02936251]
[1736970409833,0.2336,3424.3,3424.2,45.02929214]
[1736970410138,1.4595,3425.4,3424.2,45.02929214]
[1736970410139,0.58361,3426.5,3426.1,0.58366]
[1736970410335,0.58361,3426.5,3426.3,3.2078]
[1736970410640,0.58361,3426.5,3426.4,0.43750214]
[1736970410841,1.0189,3427.0,3426.4,0.43750214]
[1736970411033,2.6874,3426.5,3426.3,3.79142]
[1736970411233,0.58358,3426.6,3426.4,0.4368387]
[1736970411434,2.6874,3426.4,3426.3,3.79142]
[1736970411636,2.6874,3426.4,3426.3,4.2282036]
[1736970411840,2.8304,3426.4,3426.3,4.2282036]
[1736970412332,0.143,3426.4,3426.3,4.2282036]
[1736970412739,0.143,3426.4,3426.3,3.6445836]
[1736970412740,2.8304,3426.4,3426.3,3.6445836]
[1736970412934,2.8304,3426.4,3426.3,4.2282136]
[1736970413340,2.8304,3426.4,3426.3,4.22805963]
[1736970413535,2.8304,3426.4,3426.3,3.64442963]
[1736970414041,3.41401,3426.4,3426.3,3.64442963]
[1736970415438,3.41401,3426.4,3426.3,3.64432514]
[1736970415638,3.41401,3426.4,3426.3,3.55210307]
[1736970415839,3.41401,3426.4,3426.3,3.64434642]
[1736970416038,3.41401,3426.4,3426.3,3.55210307]
[1736970416540,4.58141,3426.4,3426.3,3.55210307]
[1736970417340,4.58141,3426.4,3426.3,3.55238909]
[1736970417636,4.58141,3426.4,3426.3,0.34458909]
[1736970417836,0.58366,3426.2,3425.9,3.2078]
[1736970418044,0.58366,3426.2,3426.0,0.43700203]
[1736970418233,0.58366,3426.2,3426.1,0.34467675]
[1736970418739,2.6874,3426.2,3426.1,0.34467675]
[1736970419434,2.6874,3426.2,3426.1,0.34475411]
[1736970419940,2.6874,3426.2,3426.1,0.92841411]
[1736970420142,2.6874,3426.2,3426.1,1.02075756]
[1736970420635,2.6874,3426.2,3426.1,41.82075756]
[1736970421032,2.6874,3426.2,3426.1,41.38366]
[1736970421236,2.6874,3426.2,3426.1,41.8204182]
[1736970421438,1.31604863,3426.4,3426.3,0.58363]
[1736970421641,1.31604863,3426.4,3426.3,5.5521882]
[1736970422932,1.31604863,3426.4,3426.3,5.55175278]
[1736970423136,1.31604863,3426.4,3426.3,5.55175308]
[1736970423335,1.31604863,3426.4,3426.3,5.55174073]
[1736970423531,0.15614805,3426.4,3426.3,5.55174073]
[1736970424841,2.84354805,3426.4,3426.3,4.22774073]
[1736970425138,2.84354805,3426.4,3426.3,5.55175379]
[1736970425334,2.84354805,3426.4,3426.3,5.55175911]
[1736970426338,2.84354805,3426.4,3426.3,4.13557497]
[1736970427337,2.84354805,3426.4,3426.3,3.79143]
[1736970427545,3.42715805,3426.4,3426.3,3.2078]
[1736970428043,2.84354805,3426.4,3426.3,3.2078]
[1736970428240,3.42715805,3426.4,3426.3,3.2078]
[1736970430849,2.84354805,3426.4,3426.3,3.79143]
[1736970431050,0.15614805,3426.4,3426.3,3.79143]
[1736970431347,0.18594805,3426.4,3426.3,5.45972257]
[1736970431548,0.18594805,3426.4,3426.3,5.55190308]
[1736970431746,0.18594805,3426.4,3426.3,46.35190308]
[1736970432742,2.87334805,3426.4,3426.3,45.02790308]
[1736970432948,2.87334805,3426.4,3426.3,46.25972257]
[1736970433147,2.87334805,3426.4,3426.3,46.25984619]
[1736970433447,2.87334805,3426.4,3426.3,4.13584619]
[1736970433652,2.87334805,3426.4,3426.3,5.45984619]
[1736970434550,2.87334805,3426.4,3426.3,4.13584619]
[1736970434744,2.87334805,3426.4,3426.3,5.45984619]
[1736970434945,3.45695805,3426.4,3426.3,3.55221619]
[1736970435143,2.87334805,3426.4,3426.1,0.58365]
[1736970435342,2.87334805,3426.4,3426.0,0.4791]
[1736970435343,0.76955805,3426.4,3426.3,3.2078]
[1736970435551,0.76955805,3426.4,3426.3,3.79143]
[1736970435852,3.45695805,3426.4,3426.3,3.2078]
[1736970436245,3.45695805,3426.4,3426.3,3.79143]
[1736970437345,3.45695805,3426.4,3426.3,3.2078]
[1736970437551,1.45912,3426.2,3425.9,3.2078]
[1736970437854,0.58368,3426.0,3425.9,3.2078]
[1736970438051,3.27108,3426.0,3425.9,3.2078]
[1736970439850,2.6874,3426.0,3425.5,3.2078]
[1736970440050,0.58375,3425.6,3425.5,3.2078]
[1736970440248,0.58375,3425.6,3425.5,4.1379203]
[1736970440249,2.6874,3425.6,3425.5,4.1379203]
[1736970440445,0.18594805,3426.4,3425.5,4.93889521]
[1736970440645,0.18594805,3426.4,3426.3,0.58363]
[1736970440851,0.18594805,3426.4,3426.3,0.9296783]
[1736970441151,2.87334805,3426.4,3426.3,0.92963218]
[1736970441454,2.87334805,3426.4,3426.3,41.72963218]
[1736970441649,3.10674805,3426.4,3426.3,41.72963218]
[1736970442755,3.10674805,3426.4,3426.3,0.92963218]
[1736970443051,3.10674805,3426.4,3426.3,0.58363]
[1736970443252,3.10674805,3426.4,3426.3,41.72965456]
[1736970443751,3.10674805,3426.4,3426.3,41.72962853]
[1736970444258,3.10674805,3426.4,3426.3,43.11430141]
[1736970444259,0.41934805,3426.4,3426.3,43.11430141]
[1736970445354,0.41934805,3426.4,3426.3,43.11422116]
[1736970446157,3.69035805,3426.4,3426.3,0.34593322]
[1736970446351,3.69035805,3426.4,3426.3,0.92956322]
[1736970446756,3.69035805,3426.4,3426.3,0.34593322]
[1736970446955,3.69035805,3426.4,3426.3,0.92956322]
[1736970447151,3.10674805,3426.4,3426.3,0.34609907]
[1736970447352,3.69035805,3426.4,3426.3,0.34609907]
[1736970447767,3.69035805,3426.4,3426.3,0.92972907]
[1736970447951,3.69035805,3426.4,3426.3,0.34609907]
[1736970449363,0.58366,3426.1,3426.0,3.2078]
[1736970449557,0.58375,3425.6,3425.5,7.06394862]
[1736970449759,3.27115,3425.6,3425.5,7.4103019]
[1736970449956,2.6874,3425.6,3425.5,7.4103019]
[1736970450157,3.27115,3425.6,3425.5,3.55415328]
[1736970450766,3.30095,3425.6,3425.5,3.55415328]
[1736970450963,4.46855,3425.6,3425.5,3.55415328]
[1736970451266,4.46855,3425.6,3425.5,3.55413528]
[1736970451665,4.46855,3425.6,3425.5,3.55406674]
[1736970451864,4.46855,3425.6,3425.1,40.8]
[1736970451865,0.58381,3425.2,3425.1,40.8]
[1736970452062,3.27121,3425.2,3425.1,0.34635856]
[1736970452264,2.6874,3425.2,3424.6,3.2078]
[1736970452464,2.6874,3424.7,3424.6,3.79172]
[1736970452769,2.6874,3424.7,3424.6,4.13796194]
[1736970455174,2.6874,3424.7,3424.6,3.79172]
[1736970455476,2.6874,3424.7,3424.6,4.13759778]
[1736970455675,3.2713,3424.7,3424.6,4.13759778]
[1736970455870,2.6874,3424.7,3424.6,4.13759778]
[1736970456071,3.2713,3424.7,3424.6,4.13759778]
[1736970456280,3.2713,3424.7,3424.6,3.79172]
[1736970456477,3.2713,3424.7,3424.6,3.2078]
[1736970457261,2.6874,3424.7,3424.6,3.2078]
[1736970457461,2.6874,3424.7,3424.6,3.79172]
[1736970458976,1.1974,3425.6,3424.6,3.2078]
[1736970459169,1.1974,3425.6,3425.5,0.58376]
[1736970459369,3.8848,3425.6,3425.5,0.58376]
[1736970459571,3.8848,3425.6,3425.5,1.06666]
[1736970459772,3.8848,3425.6,3425.5,41.86666]
[1736970460579,3.8848,3425.6,3425.5,41.38376]
[1736970460873,3.8848,3425.6,3425.5,0.58376]
[1736970462374,3.8848,3425.6,3425.5,3.79156]
[1736970463579,3.8848,3425.6,3425.5,0.58376]
[1736970463768,3.8848,3425.6,3425.1,40.8]
[1736970463975,0.58377,3425.5,3425.4,0.58378]
[1736970464175,3.27117,3425.5,3425.4,0.58378]
[1736970464979,2.6874,3425.5,3425.4,0.58378]
[1736970466582,2.6874,3425.5,3425.4,3.79158]
[1736970466780,2.6874,3425.5,3425.4,4.13716562]
[1736970467077,1.1974,3425.6,3425.5,0.58376]
[1736970467275,1.1974,3425.6,3425.5,1.02187159]
[1736970467474,1.1974,3425.6,3425.5,1.10216]
[1736970467670,1.1974,3425.6,3425.5,1.54013252]
[1736970467875,1.4309,3425.6,3425.5,1.54013252]
[1736970468082,1.4309,3425.6,3425.5,1.44761957]
[1736970469086,3.3316,3425.6,3425.5,1.44761957]
[1736970469783,3.3316,3425.6,3425.5,42.24761957]
[1736970470282,3.3316,3425.6,3425.5,1.44761957]
[1736970472985,3.3316,3425.6,3425.5,0.92921957]
[1736970473789,3.3316,3425.6,3425.5,0.92944891]
[1736970476590,3.3316,3425.6,3425.5,1.02216559]
[1736970476787,3.3316,3425.6,3425.5,0.92944891]
[1736970477188,3.91535,3425.6,3425.5,0.92944891]
[1736970477389,3.91535,3425.6,3425.5,0.93023532]
[1736970477689,3.91535,3425.6,3425.5,0.58376]
[1736970478083,3.3316,3425.6,3425.5,0.93017179]
[1736970478689,3.3316,3425.6,3425.5,1.02292832]
[1736970479695,3.3316,3425.6,3425.5,41.82275782]
[1736970480392,3.3316,3425.6,3425.5,41.73001117]
[1736970480893,0.82581,3425.6,3425.5,46.73001117]
[1736970481094,0.00564863,3426.4,3426.3,0.58363]
[1736970481298,0.4988,3427.9,3426.3,0.58363]
[1736970481299,0.58336,3427.9,3427.8,0.58337]
[1736970481594,3.21233147,3428.0,3427.1,1.4587]
[1736970481595,0.00453147,3428.0,3427.9,0.58336]
[1736970481991,1.90523147,3428.0,3427.9,3.79116]
[1736970482296,2.23483147,3428.0,3427.9,3.79116]
[1736970485684,2.81817147,3428.0,3427.9,3.2078]
[1736970485892,2.23483147,3428.0,3427.9,3.2078]
[1736970486100,2.23483147,3428.0,3427.9,3.79116]
[1736970487285,0.33413147,3428.0,3427.9,3.79116]
[1736970487893,0.33413147,3428.0,3427.9,44.59116]
[1736970488291,1.7438,3430.0,3427.9,44.59116]
[1736970488292,1.81851605,3432.1,3431.2,3.2078]
[1736970488494,11.35543398,3432.7,3432.6,0.58256]
[1736970488686,1.34762485,3432.7,3432.6,8.02352702]
[1736970488994,3.2078,3434.4,3432.6,12.44096702]
[1736970489188,3.2078,3434.4,3431.3,11.5181]
[1736970489189,3.2078,3433.4,3432.8,3.2078]
[1736970489388,3.2078,3433.4,3432.0,2.77816702]
[1736970489389,1.9007,3432.4,3432.0,2.77816702]
[1736970489595,0.0539,3432.4,3432.3,3.2078]
[1736970489901,3.2078,3434.9,3432.6,3.2078]
[1736970490196,2.90989,3436.1,3431.3,1.0111]
[1736970490197,0.5824,3433.6,3432.7,0.58254]
[1736970490396,0.5824,3433.6,3432.4,3.2078]
[1736970490397,2.77816702,3433.7,3432.5,3.2078]
[1736970490693,1.513,3434.2,3433.5,3.2078]
[1736970490887,0.2468,3433.6,3432.8,3.2078]
[1736970491098,0.2468,3433.2,3433.1,3.2078]
[1736970491296,0.2468,3433.9,3433.5,0.58239]
[1736970491598,3.2078,3435.3,3433.8,3.2078]
[1736970491896,3.2078,3435.3,3433.2,2.96814]
[1736970491897,0.2468,3434.3,3433.9,0.58233]
[1736970492096,0.2468,3434.1,3433.5,3.2078]
[1736970492294,0.2468,3433.7,3433.5,3.2078]
[1736970492495,0.2468,3433.8,3433.5,3.2078]
[1736970493486,0.1495,3433.7,3433.5,3.2078]
[1736970493689,0.1495,3433.7,3433.4,3.79022]
[1736970493891,0.3824,3433.7,3433.4,3.2078]
[1736970494096,0.3824,3433.7,3433.6,0.58239]
[1736970494298,0.3824,3433.7,3433.6,2.15239]
[1736970494491,0.3824,3433.7,3433.6,7.15239]
[1736970494993,2.77816702,3434.9,3433.4,3.2078]
[1736970495199,2.77816702,3434.9,3434.1,3.2078]
[1736970495786,0.58224,3434.5,3434.1,3.2078]
[1736970495990,2.77816702,3434.9,3434.1,3.2078]
[1736970496194,0.2329,3434.5,3434.2,0.58227]
[1736970496490,1.97973,3434.5,3434.1,3.20430107]
[1736970496800,1.3975,3434.5,3434.1,3.20430107]
[1736970496997,3.4664,3434.5,3434.1,3.20430107]
[1736970497396,3.4664,3434.5,3434.2,0.58227]
[1736970497600,3.4664,3434.5,3434.1,3.20430107]
[1736970497792,3.4664,3434.5,3434.1,3.78659107]
[1736970497990,3.4664,3434.5,3434.1,3.20430107]
[1736970499100,4.04864,3434.5,3434.1,3.20430107]
[1736970500102,3.4664,3434.5,3434.1,3.78660107]
[1736970500302,3.4664,3434.5,3434.1,3.20430107]
[1736970500494,0.58227,3434.3,3434.1,3.20430107]
[1736970500694,0.58225,3434.4,3434.1,3.20430107]
[1736970500999,3.4664,3434.5,3433.8,3.2078]
[1736970501305,3.2078,3434.0,3433.4,3.2078]
[1736970501699,0.5535,3434.4,3433.4,3.7902]
[1736970501904,0.5535,3434.4,3433.4,3.2078]
[1736970502097,0.5535,3434.4,3433.0,2.77816702]
[1736970502098,0.58232,3434.0,3433.8,3.2078]
[1736970502301,0.58234,3433.9,3433.8,3.2078]
[1736970503804,0.58227,3434.3,3433.8,3.2078]
[1736970503994,0.5535,3434.4,3433.8,3.2078]
[1736970504300,0.58234,3433.9,3433.8,3.2078]
[1736970506704,2.00916,3434.4,3433.8,5.98596702]
[1736970506705,0.5535,3434.4,3433.8,5.98596702]
[1736970506914,0.5535,3434.4,3434.2,3.2078]
[1736970507605,0.58227,3434.3,3434.2,3.2078]
[1736970508003,0.5535,3434.4,3433.8,3.2078]
[1736970508205,0.58234,3433.9,3433.8,3.2078]
[1736970509609,0.58233,3434.0,3433.8,3.2078]
[1736970509809,0.58234,3433.9,3433.8,3.2078]
[1736970510309,0.5535,3434.4,3433.8,3.2078]
[1736970510508,0.5535,3434.4,3434.2,3.2078]
[1736970510712,3.4664,3434.5,3434.2,3.2078]
[1736970510910,0.58227,3434.3,3434.2,3.2078]
[1736970511109,0.58225,3434.4,3434.1,0.5823]
[1736970511411,0.58227,3434.3,3434.0,0.58231]
[1736970511708,0.58229,3434.2,3434.0,0.58231]
[1736970511907,0.58229,3434.2,3433.8,3.2078]
[1736970511908,0.58225,3434.4,3434.1,0.58229]
[1736970512610,0.58227,3434.4,3434.2,0.58228]
[1736970513210,0.75865,3434.4,3434.2,3.2078]
[1736970513405,0.75865,3434.4,3434.3,0.58227]
[1736970515406,0.99155,3434.4,3434.2,3.79007]
[1736970515603,1.57381,3434.4,3434.3,0.58227]
[1736970515808,1.57381,3434.4,3434.2,3.2078]
[1736970515809,0.99155,3434.4,3434.2,3.79008]